bitfinex/quotes_ETHUSD_20250625
["timestamp","ask_amount","ask_price","bid_price","bid_amount"]
[1750883614909,0.2056,2429.0,2428.5,1.37807183]
[1750883615090,0.2056,2429.1,2428.7,0.2056]
[1750883615403,4.32243916,2429.1,2428.7,0.2056]
[1750883615871,0.2056,2429.1,2428.7,0.2056]
[1750883616072,4.32236438,2429.1,2428.7,0.2056]
[1750883616603,4.32236438,2429.1,2428.8,4.11717177]
[1750883616604,0.2056,2429.1,2428.8,4.11717177]
[1750883618214,0.2056,2429.4,2428.9,0.9892]
[1750883618508,4.11649259,2429.3,2428.9,0.9892]
[1750883619293,0.2056,2429.4,2428.9,0.9892]
[1750883619499,4.11641562,2429.3,2428.9,0.9892]
[1750883620288,4.32197589,2429.4,2428.9,0.9892]
[1750883620487,4.11642174,2429.3,2428.9,0.9892]
[1750883622519,0.2056,2429.4,2429.0,4.11683182]
[1750883623222,4.11641816,2429.3,2428.9,0.7836]
[1750883623423,0.2056,2429.2,2428.9,0.7836]
[1750883623627,4.3222432,2429.2,2428.7,5.13273289]
[1750883623798,4.1168069,2429.1,2428.7,1.0154]
[1750883624193,6.8706,2429.2,2428.7,1.0154]
[1750883624397,10.98726593,2429.2,2428.7,5.13279692]
[1750883625128,4.11676285,2429.1,2428.7,1.0154]
[1750883625328,4.11676285,2429.1,2428.7,0.2056]
[1750883625798,5.82876285,2429.1,2428.7,0.2056]
[1750883626431,0.2056,2429.0,2428.7,4.11741655]
[1750883626600,0.2056,2429.0,2428.8,4.11720586]
[1750883627138,0.2056,2429.0,2428.7,4.11741398]
[1750883627734,0.2056,2429.0,2428.5,5.13550953]
[1750883627735,4.32252555,2429.0,2428.6,4.11749391]
[1750883627909,4.32252555,2429.0,2428.5,5.13551768]
[1750883628108,4.32252555,2429.0,2428.5,7.06086117]
[1750883628712,4.11709004,2428.9,2428.5,2.94314349]
[1750883629038,4.11736134,2428.8,2428.5,1.0178]
[1750883629244,4.11714599,2428.9,2428.5,1.0178]
[1750883630131,4.11745147,2428.7,2428.3,14.91110379]
[1750883630429,4.11765591,2428.6,2428.3,0.9986]
[1750883631033,0.2056,2428.8,2428.4,4.11792905]
[1750883631416,4.32288457,2428.8,2428.3,5.11662431]
[1750883631819,4.32288457,2428.8,2428.3,5.11665337]
[1750883632253,4.11770098,2428.6,2428.1,0.7971]
[1750883632535,6.03521715,2428.6,2428.2,0.2056]
[1750883632699,4.11794776,2428.4,2428.2,0.2056]
[1750883633131,4.11810731,2428.3,2428.2,0.2056]
[1750883633554,1.712,2428.6,2427.9,1.0209301]
[1750883633720,0.2056,2428.3,2427.9,5.1396369]
[1750883635921,0.2056,2428.3,2427.9,1.0209301]
[1750883636132,0.2056,2428.3,2427.9,4.34256047]
[1750883636323,10.99076243,2428.3,2427.9,0.2238301]
[1750883636622,5.67461662,2428.2,2427.9,0.2238301]
[1750883636828,4.1183791,2428.2,2427.9,0.2238301]
[1750883637028,10.99078264,2428.3,2427.9,0.2238301]
[1750883637412,4.11827691,2428.2,2427.9,0.2238301]
[1750883637623,10.99079537,2428.3,2427.9,0.2238301]
[1750883638028,4.11828754,2428.2,2427.9,0.2238301]
[1750883638249,0.2056,2428.1,2427.9,0.2238301]
[1750883638630,4.3240687,2428.1,2427.9,0.2238301]
[1750883639037,4.11861614,2428.0,2427.9,0.2238301]
[1750883640129,14.11861614,2428.0,2427.9,0.2238301]
[1750883640525,22.65175989,2428.0,2427.9,0.2238301]
[1750883641555,29.32075989,2428.0,2427.9,0.2238301]
[1750883643251,9.878,2428.4,2427.9,0.2238301]
[1750883643450,1.04507438,2428.5,2427.9,0.2238301]
[1750883643451,1.713,2428.5,2428.0,4.11861614]
[1750883643656,1.713,2428.5,2428.1,0.51224462]
[1750883643839,0.2056,2428.4,2427.9,5.32821407]
[1750883644048,6.685,2428.3,2427.9,5.32821407]
[1750883644228,6.685,2428.3,2428.0,4.11858771]
[1750883644639,6.685,2428.3,2428.1,4.11844]
[1750883644955,6.685,2428.3,2428.0,4.11854147]
[1750883645254,6.685,2428.3,2428.1,4.11843445]
[1750883645456,6.685,2428.3,2428.2,4.11827691]
[1750883646655,6.8936,2428.5,2428.4,4.11793773]
[1750883646829,6.8936,2428.5,2428.3,4.1180346]
[1750883647030,6.8936,2428.5,2428.2,4.11819162]
[1750883648749,6.8936,2428.5,2428.2,4.11827098]
[1750883651259,6.8936,2428.5,2428.3,4.11810279]
[1750883651664,6.8936,2428.5,2428.2,4.11821612]
[1750883652143,6.8936,2428.5,2428.1,0.2056]
[1750883652457,11.0115196,2428.5,2428.1,4.32404616]
[1750883652661,6.8936,2428.5,2428.1,4.32404616]
[1750883653033,4.11798777,2428.4,2427.9,0.2238301]
[1750883653264,0.2056,2428.1,2427.9,0.2238301]
[1750883653463,6.8946,2428.1,2427.9,0.2238301]
[1750883654960,11.01306965,2428.1,2427.9,0.2238301]
[1750883655361,6.8946,2428.1,2427.9,0.2238301]
[1750883656347,11.01304912,2428.1,2427.9,0.2238301]
[1750883656939,4.11861614,2428.0,2427.9,0.2238301]
[1750883658052,5.0997462,2428.0,2427.9,0.2238301]
[1750883658969,0.98113006,2428.0,2427.9,0.2238301]
[1750883659277,5.0997462,2428.0,2427.9,0.2238301]
[1750883662871,0.98113006,2428.0,2427.9,0.2238301]
[1750883664067,5.0997462,2428.0,2427.9,0.2238301]
[1750883664274,0.98113006,2428.0,2427.9,0.2238301]
[1750883664444,5.0997462,2428.0,2427.9,0.2238301]
[1750883670089,15.0997462,2428.0,2427.9,0.2238301]
[1750883670399,25.1623917,2428.0,2427.9,0.2238301]
[1750883670892,33.0493917,2428.0,2427.9,0.2238301]
[1750883671506,24.51624795,2428.0,2427.9,0.2238301]
[1750883676774,32.31624795,2428.0,2427.9,0.2238301]
[1750883682808,32.86624795,2428.0,2427.9,0.2238301]
[1750883683680,32.86624795,2428.0,2426.7,0.2056]
[1750883683681,4.11912509,2427.7,2426.7,0.7646]
[1750883683897,4.12041961,2427.0,2426.7,0.7646]
[1750883684103,12.55558444,2426.9,2426.7,0.7646]
[1750883684310,8.436,2426.8,2426.7,0.7646]
[1750883684504,8.436,2426.8,2426.7,4.88542251]
[1750883684705,8.436,2426.8,2426.7,0.7646]
[1750883686482,4.12025912,2427.1,2426.7,0.7646]
[1750883686917,4.12050728,2426.9,2426.5,0.7958]
[1750883687219,10.82472679,2426.8,2426.5,0.7958]
[1750883687396,10.82472679,2426.8,2426.0,4.1219993]
[1750883687397,4.12116562,2426.5,2426.0,4.1219993]
[1750883687593,10.8243432,2426.4,2425.9,4.91788603]
[1750883687789,6.71,2426.3,2426.0,4.12198851]
[1750883688406,1.733,2426.4,2426.3,4.12150187]
[1750883688713,7.8,2426.9,2426.5,4.12106209]
[1750883688882,10.0,2427.2,2426.6,0.8105]
[1750883688883,4.11999488,2427.2,2426.6,0.8105]
[1750883689089,4.12032747,2427.0,2426.6,0.8105]
[1750883689304,10.83358709,2426.9,2426.6,0.8105]
[1750883689905,6.713,2426.9,2426.6,0.8105]
[1750883690618,4.12065488,2426.8,2426.6,0.8105]
[1750883690916,6.714,2426.7,2426.6,0.8105]
[1750883691312,12.33036521,2426.7,2426.3,0.8303]
[1750883691517,4.12118824,2426.5,2426.3,0.8303]
[1750883691687,6.712,2426.4,2426.3,0.8303]
[1750883692184,10.83333201,2426.4,2425.9,0.8235]
[1750883692388,4.12167463,2426.2,2425.9,0.8235]
[1750883692614,10.83867463,2426.2,2425.9,0.8235]
[1750883692815,6.717,2426.2,2425.9,0.8235]
[1750883693217,10.83872073,2426.2,2425.9,0.8235]
[1750883693484,6.717,2426.2,2425.9,4.94558616]
[1750883693689,6.717,2426.2,2425.9,1.0291]
[1750883693903,10.83868895,2426.2,2425.9,1.0291]
[1750883694519,6.717,2426.2,2425.9,1.0291]
[1750883694705,6.717,2426.2,2426.0,4.12192405]
[1750883694910,6.717,2426.2,2425.9,5.15122369]
[1750883695387,6.717,2426.2,2425.9,1.0291]
[1750883696235,6.717,2426.2,2425.9,5.15122864]
[1750883696439,6.717,2426.2,2426.1,4.12184163]
[1750883697108,6.717,2426.2,2426.0,4.12200675]
[1750883697308,6.717,2426.2,2425.9,1.0291]
[1750883697309,6.717,2426.2,2425.9,5.1512115]
[1750883697708,6.717,2426.2,2426.0,4.1218842]
[1750883697909,6.717,2426.2,2426.0,4.12195818]
[1750883698642,6.717,2426.2,2426.0,4.12201154]
[1750883698812,6.717,2426.2,2426.1,4.12184163]
[1750883699012,6.717,2426.2,2426.0,4.12201154]
[1750883699013,6.717,2426.2,2426.0,4.12194847]
[1750883699213,6.717,2426.2,2426.1,4.12184163]
[1750883700921,5.93939871,2426.2,2426.1,4.12184163]
[1750883701126,5.93939871,2426.2,2425.9,5.15124409]
[1750883701127,5.93939871,2426.2,2426.0,4.12193794]
[1750883701326,5.93939871,2426.2,2425.9,5.15113907]
[1750883701534,0.2056,2426.4,2426.3,4.12150187]
[1750883701714,8.443,2426.6,2426.3,4.12150187]
[1750883701911,0.2056,2426.5,2426.2,4.12161382]
[1750883702763,0.2056,2426.5,2426.2,4.12158276]
[1750883703082,0.2056,2426.5,2426.4,4.12133201]
[1750883703355,0.2056,2426.5,2426.3,4.12140476]
[1750883703715,0.2056,2426.5,2426.2,4.12160787]
[1750883703916,0.2056,2426.5,2426.2,0.92339874]
[1750883704218,0.2056,2426.5,2426.1,0.9906]
[1750883704531,4.12150829,2426.3,2426.1,0.785]
[1750883704719,0.2056,2426.4,2426.1,0.785]
[1750883705050,4.32695326,2426.4,2426.1,0.785]
[1750883705260,0.2056,2426.4,2426.1,0.785]
[1750883705417,4.3269583,2426.4,2426.1,0.785]
[1750883705751,0.2056,2426.4,2426.1,0.785]
[1750883706051,0.2056,2426.4,2426.1,4.9067546]
[1750883706246,0.2056,2426.4,2426.1,0.785]
[1750883706450,0.2056,2426.4,2426.1,4.90680281]
[1750883706762,0.2056,2426.4,2426.2,4.12151888]
[1750883706915,0.2056,2426.4,2426.1,1.70843263]
[1750883707115,4.32700788,2426.4,2426.1,1.70843263]
[1750883707531,0.2056,2426.4,2426.1,1.70843263]
[1750883707831,0.2056,2426.4,2426.1,5.83026849]
[1750883708033,8.445,2426.6,2426.2,4.7045695]
[1750883708239,0.2056,2426.5,2426.2,4.7045695]
[1750883708664,4.32677882,2426.5,2426.2,0.58302685]
[1750883708967,0.2056,2426.5,2426.2,0.58302685]
[1750883709823,4.32680942,2426.5,2426.2,0.58302685]
[1750883710027,0.2056,2426.5,2426.2,4.70468756]
[1750883710457,0.2056,2426.5,2426.2,0.58302685]
[1750883710845,0.2056,2426.5,2426.1,5.11236778]
[1750883711052,4.12135532,2426.4,2426.1,0.9906]
[1750883712331,4.12164762,2426.3,2425.8,4.94732284]
[1750883712576,4.12164762,2426.3,2425.9,0.2056]
[1750883712779,4.12189683,2426.1,2425.9,0.2056]
[1750883713073,6.9146,2426.2,2425.8,0.825]
[1750883713374,6.9146,2426.2,2425.8,4.94733791]
[1750883713547,6.709,2426.2,2425.9,4.12209124]
[1750883713747,6.709,2426.2,2425.9,4.32769124]
[1750883714346,6.709,2426.2,2425.9,0.2056]
[1750883714546,6.709,2426.2,2425.9,4.32776045]
[1750883715063,6.709,2426.2,2425.9,0.2056]
[1750883715773,6.709,2426.2,2426.0,4.12189682]
[1750883716181,6.709,2426.2,2426.0,4.1219592]
[1750883716689,6.709,2426.2,2426.0,4.12200174]
[1750883719195,6.709,2426.2,2426.1,4.12184163]
[1750883720059,0.98067413,2426.6,2426.4,4.12124243]
[1750883720289,0.2056,2426.7,2426.4,4.12124243]
[1750883720861,4.32644707,2426.7,2426.3,4.32702218]
[1750883721085,0.2056,2426.7,2426.3,0.2056]
[1750883721501,2.48333241,2426.7,2426.3,0.2056]
[1750883721804,4.32704884,2426.4,2425.9,4.87758419]
[1750883722101,1.737,2426.3,2426.0,4.32757367]
[1750883722306,1.737,2426.3,2426.1,4.12179911]
[1750883722502,1.737,2426.3,2426.0,4.32752201]
[1750883723203,1.737,2426.3,2426.1,4.12180855]
[1750883724387,1.737,2426.3,2426.2,4.12167175]
[1750883724890,1.737,2426.3,2426.0,4.32753552]
[1750883725088,1.737,2426.3,2426.1,4.12169315]
[1750883725309,1.737,2426.3,2426.2,4.12167175]
[1750883728185,1.737,2426.3,2425.9,4.87763579]
[1750883728409,0.2056,2426.2,2425.9,4.87763579]
[1750883728612,0.2056,2426.2,2426.0,4.12200484]
[1750883728913,0.2056,2426.2,2425.9,4.87761062]
[1750883729080,0.2056,2426.2,2425.9,0.7555]
[1750883729290,0.2056,2426.2,2425.9,4.87767269]
[1750883730010,0.2056,2426.2,2426.0,4.1219959]
[1750883730209,0.2056,2426.2,2426.1,4.12184163]
[1750883730411,0.2056,2426.2,2425.9,4.87761073]
[1750883731422,0.2056,2426.2,2426.0,4.12197978]
[1750883731789,1.737,2426.3,2426.0,4.94638988]
[1750883731991,1.737,2426.3,2426.2,4.12167175]
[1750883732217,0.2056,2426.6,2426.2,0.2056]
[1750883732394,2.71772827,2427.4,2427.3,4.11980389]
[1750883732593,8.77008612,2428.9,2427.4,4.11955874]
[1750883732594,0.2056,2427.6,2427.4,4.11955874]
[1750883733120,0.2056,2427.6,2427.5,4.11946446]
[1750883733288,0.2056,2427.9,2427.5,0.7711]
[1750883733614,1.737,2428.1,2428.0,4.11861614]
[1750883734015,1.737,2428.1,2427.9,0.7711]
[1750883734795,1.737,2428.1,2427.9,4.88988483]
[1750883734996,1.737,2428.1,2428.0,4.11861614]
[1750883735196,9.888,2428.9,2428.0,4.11861614]
[1750883735197,0.2056,2428.5,2428.2,4.1182658]
[1750883735407,9.888,2428.9,2427.9,0.7711]
[1750883735408,5.85428233,2428.8,2427.9,0.7711]
[1750883735719,0.2056,2428.6,2428.3,0.7642]
[1750883736097,1.737,2428.8,2428.4,4.11793773]
[1750883736324,1.737,2428.8,2428.4,0.2056]
[1750883736687,1.737,2428.8,2428.6,4.11758714]
[1750883737097,1.737,2428.8,2428.5,4.11768806]
[1750883737292,1.737,2428.8,2428.4,0.2056]
[1750883737693,1.737,2428.8,2428.4,4.3234603]
[1750883738925,1.737,2428.8,2428.5,4.11774311]
[1750883739128,1.737,2428.8,2428.6,4.11758874]
[1750883739298,1.737,2428.8,2428.5,4.11772423]
[1750883739494,10.0,2429.3,2428.6,0.8078]
[1750883739495,1.736,2429.3,2428.6,0.8078]
[1750883739834,1.9416,2429.3,2429.0,0.8078]
[1750883739991,0.2056,2429.3,2429.2,4.11658159]
[1750883740600,1.736,2429.7,2429.3,4.11639544]
[1750883740800,6.05734319,2429.7,2429.2,4.32212477]
[1750883741606,6.05734319,2429.7,2429.0,0.8078]
[1750883741607,4.41527467,2429.7,2429.0,0.8078]
[1750883741811,4.11619322,2429.5,2429.1,0.2056]
[1750883742704,0.2056,2429.6,2429.1,4.32218584]
[1750883742904,8.53110997,2429.7,2429.2,4.11654372]
[1750883742905,1.736,2429.7,2429.2,4.11654372]
[1750883743125,6.05742249,2429.7,2429.2,0.2056]
[1750883744232,4.11593094,2429.6,2429.2,0.2056]
[1750883744436,4.11591339,2429.6,2429.2,0.2056]
[1750883744605,1.9416,2429.7,2429.0,0.8078]
[1750883744606,4.11640245,2429.4,2429.0,0.8078]
[1750883744807,1.736,2429.7,2429.1,0.2056]
[1750883744808,0.2056,2429.5,2429.1,0.2056]
[1750883745008,4.32170348,2429.5,2429.1,0.2056]
[1750883745207,0.2056,2429.5,2429.1,4.32234694]
[1750883745433,1.736,2429.7,2429.0,4.92469694]
[1750883745736,1.736,2429.7,2429.4,4.11617405]
[1750883746048,10.84541651,2429.9,2429.6,0.991]
[1750883746258,6.73,2429.9,2428.9,10.55]
[1750883746456,4.11602755,2429.6,2429.4,0.7854]
[1750883746823,0.2056,2429.8,2429.4,0.7854]
[1750883747033,4.32123554,2429.8,2429.4,0.7854]
[1750883747238,0.2056,2429.8,2429.4,5.41233371]
[1750883747660,6.73,2429.9,2429.6,4.11588388]
[1750883747843,8.477,2430.0,2429.7,4.11571667]
[1750883748154,12.59235259,2430.0,2429.7,0.2056]
[1750883748455,5.86135259,2430.0,2429.7,0.2056]
[1750883748760,1.746,2430.0,2429.7,0.2056]
[1750883749263,4.11548358,2429.9,2429.4,4.90162815]
[1750883749436,4.11548358,2429.9,2429.5,0.69576282]
[1750883750737,6.06689255,2430.0,2429.5,4.81175667]
[1750883751051,4.11540129,2429.9,2429.5,4.81175676]
[1750883751240,6.06687571,2430.0,2429.5,4.81175676]
[1750883751446,4.11543331,2429.9,2429.5,0.69576282]
[1750883752458,4.11559421,2429.8,2429.5,0.69576282]
[1750883753329,4.11565376,2429.8,2429.5,0.69576282]
[1750883753528,6.06688951,2430.0,2429.5,0.2056]
[1750883753739,4.115499,2429.9,2429.5,0.2056]
[1750883754358,6.06688951,2430.0,2429.5,0.2056]
[1750883754359,4.11557809,2429.8,2429.5,0.2056]
[1750883755762,4.11557638,2429.8,2429.5,0.2056]
[1750883756139,4.11544403,2429.9,2429.5,4.32164883]
[1750883756347,4.11544403,2429.9,2429.5,1.12794059]
[1750883757776,1.9516,2430.0,2429.5,1.12794059]
[1750883757958,9.879,2430.7,2429.5,1.12794059]
[1750883757959,1.9516,2430.4,2430.0,4.11521759]
[1750883758269,8.6746,2430.4,2429.9,0.7969]
[1750883758562,1.746,2430.4,2430.3,0.757]
[1750883758962,1.746,2430.4,2430.1,0.9883]
[1750883759136,1.746,2430.4,2430.1,5.10335416]
[1750883759339,1.746,2430.4,2430.2,0.51033542]
[1750883759962,0.2056,2430.6,2430.3,0.7827]
[1750883760149,4.11366732,2431.0,2430.3,0.7827]
[1750883760150,4.11381984,2430.9,2430.4,4.11445966]
[1750883760354,10.83461243,2431.0,2430.4,4.11445966]
[1750883760550,10.83461243,2431.0,2430.5,0.90118694]
[1750883760551,4.11370274,2430.9,2430.5,0.90118694]
[1750883760751,6.721,2431.0,2430.3,0.7827]
[1750883760964,6.721,2431.0,2430.7,4.11395192]
[1750883761176,4.11310241,2431.3,2430.8,4.11384021]
[1750883761488,8.468,2431.1,2430.8,4.11384021]
[1750883761649,12.5814761,2431.1,2430.8,0.90475771]
[1750883762180,8.468,2431.1,2430.8,0.90475771]
[1750883762783,1.746,2431.1,2430.7,0.8196]
[1750883762986,1.746,2431.1,2431.0,4.11353352]
[1750883763295,0.97502938,2431.6,2431.2,4.865401]
[1750883763296,1.745,2431.5,2431.2,4.865401]
[1750883763448,5.85778134,2431.5,2431.2,0.7523]
[1750883763644,1.745,2431.5,2431.2,1.2388769]
[1750883764044,1.745,2431.5,2431.3,4.1130022]
[1750883764357,6.722,2431.6,2431.3,4.11294232]
[1750883764689,6.722,2431.6,2431.2,1.2388769]
[1750883764690,10.83458291,2431.6,2431.2,1.2388769]
[1750883764850,10.83458291,2431.6,2431.2,0.7523]
[1750883765252,4.1127026,2431.5,2431.2,0.7523]
[1750883765450,4.1128673,2431.4,2431.0,0.7523]
[1750883765684,4.11279444,2431.5,2431.0,4.86578627]
[1750883765977,6.722,2431.6,2431.2,4.11309431]
[1750883766175,11.619,2431.7,2431.3,4.11299156]
[1750883766382,18.338,2431.7,2431.3,4.11299156]
[1750883766593,18.338,2431.7,2431.2,0.48653943]
[1750883766763,18.338,2431.7,2431.5,4.1126787]
[1750883766963,18.338,2431.7,2431.4,4.11276932]
[1750883767159,9.871,2432.7,2431.5,0.7523]
[1750883767506,6.728,2432.9,2432.2,4.11141057]
[1750883767707,4.11070818,2432.7,2432.2,4.52255163]
[1750883768000,4.11083293,2432.6,2432.2,0.41114106]
[1750883768149,1.745,2432.9,2432.3,0.8273]
[1750883768500,0.20028987,2434.0,2432.3,0.8273]
[1750883768501,0.97469244,2433.6,2432.3,0.8273]
[1750883768793,4.10947645,2433.4,2432.7,4.11063117]
[1750883768966,4.10947645,2433.4,2432.7,0.82215573]
[1750883768967,4.11015387,2433.0,2432.7,0.82215573]
[1750883769286,4.1100981,2433.1,2432.5,4.11099198]
[1750883769471,4.11016284,2433.0,2432.4,4.1110794]
[1750883769654,4.11034266,2432.9,2432.4,4.1110794]
[1750883769852,4.11079125,2432.7,2432.3,0.8273]
[1750883770066,6.74,2432.8,2432.1,0.779]
[1750883770256,0.2048,2432.4,2432.0,4.11171066]
[1750883770452,10.0,2433.3,2432.0,4.1118421]
[1750883770653,0.2048,2432.6,2431.8,0.779]
[1750883770854,4.11142258,2432.3,2432.0,0.2048]
[1750883771095,4.11124862,2432.4,2432.0,0.2048]
[1750883771314,0.2048,2432.5,2432.0,4.31663623]
[1750883771315,4.3158648,2432.5,2432.0,4.31663623]
[1750883771489,4.11116619,2432.4,2432.0,1.1255774]
[1750883772190,4.11117384,2432.4,2432.0,1.1255774]
[1750883772571,4.31587657,2432.5,2432.0,1.1255774]
[1750883772873,4.31587657,2432.5,2432.0,5.23740172]
[1750883773073,4.11118617,2432.4,2432.0,1.1255774]
[1750883773287,4.31586221,2432.5,2432.0,1.1255774]
[1750883773604,4.11131778,2432.4,2432.0,1.1255774]
[1750883773996,4.31588559,2432.5,2432.0,1.1255774]
[1750883774301,4.31588559,2432.5,2432.1,0.52375809]
[1750883774501,4.11121631,2432.4,2432.1,0.52375809]
[1750883774681,4.31586025,2432.5,2432.1,0.52375809]
[1750883775081,4.11076703,2432.7,2432.2,4.91861263]
[1750883775279,0.2048,2432.6,2432.3,4.11131432]
[1750883775499,12.60651592,2432.8,2432.3,4.67596459]
[1750883775798,12.60651592,2432.8,2432.5,4.11089923]
[1750883775799,8.496,2432.8,2432.5,4.11089923]
[1750883776000,4.11006532,2433.1,2432.7,0.8072]
[1750883776199,0.2048,2433.0,2432.7,0.8072]
[1750883776510,0.2048,2433.0,2432.7,4.91776341]
[1750883776706,0.2048,2433.0,2432.7,0.8072]
[1750883777392,0.2048,2433.0,2432.7,4.91784439]
[1750883777571,0.2048,2433.0,2432.7,5.8412067]
[1750883777778,0.2048,2433.0,2432.8,4.11048975]
[1750883778100,0.2048,2433.0,2432.8,4.11047363]
[1750883778312,18.496,2433.3,2432.7,1.73056231]
[1750883778606,4.10999788,2433.1,2432.3,1.39340724]
[1750883778809,0.2048,2432.9,2432.4,0.2048]
[1750883778998,4.11065893,2432.7,2432.4,0.2048]
[1750883779171,6.743,2432.8,2432.4,0.2048]
[1750883779376,4.31577275,2432.6,2432.1,0.2048]
[1750883779688,4.31577275,2432.6,2432.1,4.31644306]
[1750883779897,4.11104477,2432.5,2432.1,0.2048]
[1750883780089,4.31570037,2432.6,2432.1,4.31644956]
[1750883780407,4.31570037,2432.6,2432.1,0.2048]
[1750883780408,4.11099691,2432.5,2432.1,0.2048]
[1750883780577,0.2048,2432.6,2432.1,0.2048]
[1750883780778,4.11150095,2432.3,2432.1,0.2048]
[1750883781185,4.11150398,2432.2,2432.1,0.2048]
[1750883782905,4.11140726,2432.3,2432.1,0.2048]
[1750883783513,4.11150398,2432.2,2432.1,0.2048]
[1750883784126,4.11137091,2432.3,2432.1,0.2048]
[1750883784420,4.11104699,2432.5,2432.1,0.2048]
[1750883784619,4.11150398,2432.2,2431.7,0.8186]
[1750883784786,0.2048,2432.3,2431.8,4.31761328]
[1750883784990,4.31615504,2432.3,2431.8,0.2056]
[1750883785289,0.2048,2432.3,2431.8,0.2056]
[1750883785486,0.2048,2432.3,2431.8,0.89484553]
[1750883785694,4.31618157,2432.3,2431.8,5.00692657]
[1750883785894,4.11162591,2432.2,2431.8,0.89484553]
[1750883786116,4.31614232,2432.3,2431.8,5.00702279]
[1750883786715,4.11151455,2432.2,2431.8,0.89484553]
[1750883787232,0.2048,2432.3,2431.9,4.11200009]
[1750883787233,4.3161644,2432.3,2431.9,4.11200009]
[1750883787531,4.11153495,2432.2,2431.8,0.89484553]
[1750883787707,4.31619847,2432.3,2431.8,5.00693597]
[1750883787906,6.732,2432.4,2432.0,4.11176121]
[1750883788123,6.9368,2432.4,2432.0,4.31656121]
[1750883788526,6.9368,2432.4,2432.1,0.7506]
[1750883788527,0.2048,2432.4,2432.1,0.7506]
[1750883788848,0.2048,2433.0,2432.4,0.7506]
[1750883789015,4.31504604,2433.0,2432.5,4.11098797]
[1750883789346,4.31504604,2433.0,2432.5,4.31578797]
[1750883789502,0.2048,2433.0,2432.6,4.11081763]
[1750883789698,6.737,2433.4,2432.6,4.11082792]
[1750883789911,0.2048,2433.1,2432.9,4.11024231]
[1750883790312,0.2048,2433.1,2432.7,0.2048]
[1750883790517,4.31489742,2433.1,2432.7,0.2048]
[1750883792229,4.11016145,2433.0,2432.7,0.2048]
[1750883792529,0.2048,2433.1,2432.7,0.2048]
[1750883792530,5.29399095,2433.1,2432.8,0.757]
[1750883792714,0.2048,2433.1,2432.8,0.757]
[1750883793543,4.31487226,2433.1,2432.8,0.757]
[1750883793842,0.2048,2433.1,2432.8,0.757]
[1750883794339,0.2048,2433.1,2432.9,4.11017482]
[1750883794830,0.98095344,2433.2,2432.8,5.37465701]
[1750883795030,4.31454863,2433.3,2432.9,0.2048]
[1750883795239,5.09091135,2433.2,2432.9,0.2048]
[1750883795439,4.10998848,2433.1,2432.9,0.2048]
[1750883795840,0.98150829,2433.2,2432.9,0.2048]
[1750883796022,0.98150829,2433.2,2432.9,0.76275336]
[1750883796213,0.2048,2433.3,2432.9,0.76275336]
[1750883796214,4.3145271,2433.3,2432.9,0.2048]
[1750883796419,0.9815068,2433.2,2432.9,0.2048]
[1750883796624,4.3145271,2433.3,2432.9,0.2048]
[1750883796842,0.98223185,2433.2,2432.9,4.31505734]
[1750883797022,0.2048,2433.3,2432.9,4.31505734]
[1750883797205,5.09215396,2433.2,2433.0,0.50720573]
[1750883797409,4.11000341,2433.1,2432.9,0.2048]
[1750883797709,0.98210617,2433.2,2432.9,0.2048]
[1750883797909,4.11000863,2433.1,2432.9,0.2048]
[1750883798144,5.0919642,2433.2,2432.9,0.2048]
[1750883798344,4.31456978,2433.3,2432.9,0.2048]
[1750883798546,4.31456978,2433.3,2432.9,0.71202791]
[1750883798547,0.98195542,2433.2,2432.9,0.71202791]
[1750883798759,0.2048,2433.3,2433.0,4.11003491]
[1750883799223,6.732,2434.1,2433.2,4.10966283]
[1750883799411,0.98177179,2434.0,2433.2,4.10981423]
[1750883799605,0.98177179,2433.9,2433.0,4.88207096]
[1750883799838,0.98177179,2433.9,2433.0,0.772]
[1750883799839,0.98177179,2433.8,2433.0,0.772]
[1750883800005,4.1095966,2433.4,2433.0,0.772]
[1750883800208,0.98137029,2433.7,2433.1,4.10993928]
[1750883800209,10.84520815,2433.6,2433.1,4.10993928]
[1750883800438,4.10932309,2433.5,2433.0,4.88207061]
[1750883800637,4.10932309,2433.5,2433.0,0.772]
[1750883800839,4.4643343,2434.6,2433.1,10.772]
[1750883801037,4.4643343,2434.6,2433.1,0.772]
[1750883801038,5.8639987,2434.3,2433.1,0.772]
[1750883801339,4.10906583,2433.7,2433.2,4.10978525]
[1750883801845,4.10888732,2433.8,2433.2,4.10978525]
[1750883802146,4.10868711,2433.9,2433.4,4.1093744]
[1750883802312,4.10881218,2433.8,2433.3,4.59776333]
[1750883802707,4.10873061,2433.9,2433.3,4.59776333]
[1750883802912,4.10873061,2433.9,2433.4,4.10946991]
[1750883803118,4.10885442,2433.8,2433.3,0.48817853]
[1750883803437,4.10886192,2433.8,2433.3,0.48817853]
[1750883803642,4.10886192,2433.8,2433.3,4.59778845]
[1750883804140,10.85052593,2434.0,2433.3,0.48817853]
[1750883804141,4.10900188,2433.7,2433.3,0.48817853]
[1750883804714,4.10872042,2433.9,2433.3,4.59779382]
[1750883804912,4.10895079,2433.8,2433.4,0.45977938]
[1750883805247,4.10871429,2433.9,2433.4,4.56923308]
[1750883805840,6.742,2434.0,2433.4,0.45977938]
[1750883806019,0.97937168,2434.2,2433.6,4.91417103]
[1750883806223,6.735,2434.1,2433.7,4.10892387]
[1750883806542,10.84216618,2434.2,2433.7,4.10892387]
[1750883806726,4.10830053,2434.1,2433.6,4.91425255]
[1750883806923,4.10830053,2434.1,2433.6,5.81660251]
[1750883807128,4.108814,2433.8,2433.6,0.8052]
[1750883807327,4.108814,2433.8,2433.4,0.8052]
[1750883808720,6.734,2434.2,2433.4,0.8052]
[1750883808925,4.10890474,2433.8,2433.4,0.8052]
[1750883809132,10.0,2434.1,2433.2,0.8052]
[1750883809337,4.31405852,2433.6,2433.2,1.01]
[1750883809927,4.10931131,2433.5,2433.2,1.01]
[1750883810123,0.2048,2433.6,2433.2,1.01]
[1750883810326,0.2048,2433.6,2433.2,5.11968439]
[1750883810547,0.2048,2433.6,2433.2,2.12289183]
[1750883811243,4.31409863,2433.6,2433.2,2.12289183]
[1750883811448,0.2048,2433.6,2433.2,2.12289183]